Cogmind - Beta 13 --- EXPLORER MODE // 2024.04.28 @ 20:28:19 Player: CommieCapybara Result: Destroyed by G-47 Trooper with Particle Gun Performance ------------- Evolutions (2) 1000 Regions Visited (4) 800 Robots Destroyed (23) 115 Value Destroyed (724) 724 Prototype IDs (0) 0 Alien Tech Used (0) 0 Bonus (74) 74 TOTAL SCORE: 2713 Bonus ------- Follower Combat Kills 126 Friendly Fire -52 Cogmind --------- Core Integrity 0/550 Matter 278/300 Energy 99/100 System Corruption 2% Temperature Warm (133) Movement Core (50) Location -8/Materials Parts ------- > --- POWER (2) -------- (None) > --- PROPULSION (3) --- (None) > --- UTILITY (4) ------ (None) > --- WEAPON (3) ------- (None) > --- INVENTORY (5) ---- Cryofiber Web Huge Storage Unit Transport Network Coupler Improved Light Cannon Scythe Peak State ------------ > --- POWER ------------ Light Ion Engine Nuclear Core > --- PROPULSION ------- Aluminum Leg Carbon-fiber Leg > --- UTILITY ---------- Improved Signal Interpreter Terrain Scanner Advanced Terrain Scan Processor Seismic Detector > --- WEAPON ----------- Improved Light Cannon Assault Cannon Great Maul > --- INVENTORY -------- Cryofiber Web Huge Storage Unit Transport Network Coupler Improved Light Cannon Scythe [Rating: 26] Favorites ----------- Power Light Ion Engine Engine Light Ion Engine Power Core Nuclear Core Propulsion Aluminum Leg Leg Aluminum Leg Utility Seismic Detector Device Seismic Detector Storage Small Storage Unit Processor Improved Signal Interpreter Weapon Improved Light Cannon Energy Gun Medium Laser Ballistic Gun Heavy Assault Rifle Ballistic Cannon Improved Light Cannon Launcher Mini Grenade Launcher Impact Weapon Great Maul Build | -11 -10 -10 -9 -8 ------- Run | Yrd Mat Min Mat Mat Slots Evolved 5 | . 1 . 2 2 Power 1 | . . . . 1 Propulsion 1 | . 1 . . . Utility 2 | . . . 2 . Weapon 1 | . . . . 1 Parts Attached 30 | 11 3 3 7 6 Power 4 | 3 . . . 1 Engine 3 | 3 . . . . Core 1 | . . . . 1 Reactor . | . . . . . Propulsion 5 | 2 1 . 2 . Treads . | . . . . . Leg 5 | 2 1 . 2 . Wheel . | . . . . . Hover . | . . . . . Flight . | . . . . . Utility 10 | 4 . 2 3 1 Device 5 | 4 . . 1 . Storage 1 | . . . 1 . Processor 4 | . . 2 1 1 Hackware . | . . . . . Protection . | . . . . . Artifact . | . . . . . Weapon 11 | 2 2 1 2 4 Energy Gun 1 | 1 . . . . Energy Cannon . | . . . . . Ballistic Gun 3 | 1 . 1 . 1 Ballistic Cannon 3 | . 2 . . 1 Launcher 3 | . . . 2 1 Special Weapon . | . . . . . Impact Weapon 1 | . . . . 1 Slashing Weapon . | . . . . . Piercing Weapon . | . . . . . Special Melee Weapon . | . . . . . Unidentified Prototypes . | . . . . . Parts Lost 9 | . . . . 9 Power 2 | . . . . 2 Propulsion 3 | . . . . 3 Utility 2 | . . . . 2 Weapon 2 | . . . . 2 Highest Loss Streak 5 | . . . . 5 To Critical Strikes . | . . . . . Average Slot Usage (%) 96 | . 92 100 99 89 Engine 9 | . 12 12 10 7 Core 1 | . . . . 7 Leg 27 | . 30 37 29 18 Device 18 | . 25 16 20 15 Processor 15 | . . 8 18 15 Ballistic Gun 2 | . 9 7 . 4 Ballistic Cannon 10 | . 5 16 10 10 Launcher 7 | . . . 9 6 Naked Turns 72 | . . . . 72 Heaviest Build 25 | 8 13 13 17 25 Greatest Support 35 | 20 30 30 35 35 Greatest Overweight (x) 5 | . . . . 5 Average Overweight (x) . | . . . . . Largest Inventory Capacity 8 | 5 5 5 8 5 Average Capacity 5 | 5 5 5 5 5 Most Carried 5 | 5 2 4 4 5 Average Carried 3 | 1 . 2 3 3 Final Capacity 5 | 5 5 5 5 5 Final Carried 5 | . . 4 4 5 Class Distribution -------------------- 83% | Hacker-Mutant 16% | Hacker-Skirmisher Dominant Class ---------------- Hacker-Mutant | -10/Materials Hacker-Mutant | -10/Mines Hacker-Mutant | -9/Materials Hacker-Skirmisher | -8/Materials Resources | -11 -10 -10 -9 -8 ----------- Run | Yrd Mat Min Mat Mat Matter Collected 936 | 306 10 75 203 342 Remotely . | . . . . . Salvage Created 647 | 34 . . 158 455 Parts 26 | 2 . . 9 15 Haulers Intercepted 1 | . . . . 1 Recyclers Shooed 1 | . . 1 . . Parts Field Recycled . | . . . . . Retrieved Matter . | . . . . . Parts Self-Destructed . | . . . . . Prevented . | . . . . . Kills | -11 -10 -10 -9 -8 ------- Run | Yrd Mat Min Mat Mat Combat Hostiles Destroyed 14 | 1 . . 5 8 Melee 2 | . . . . 2 Guns 2 | 1 . . . 1 Cannons 5 | . . . 3 2 AOE 4 | . . . 2 2 Classes Destroyed 8 | 1 . . 4 3 Worker 1 | . . . . 1 Builder 2 | . . . 2 . Hauler 1 | . . . . 1 Recycler 2 | . . . . 2 Watcher 3 | . . . 2 1 Swarmer 1 | . . . 1 . Grunt 8 | 1 . . 3 4 Sentry 5 | . . . 1 4 Best Kill Streak 4 | 1 . . 2 4 Combat Bots Only 2 | 1 . . 2 2 Max Kills in Single Turn 2 | 1 . . 2 2 Gunslinging . | . . . . . Exploded 1 | . . . 1 1 Melee 1 | . . . . 1 Uniques/NPCs Destroyed . | . . . . . Combat | -11 -10 -10 -9 -8 -------- Run | Yrd Mat Min Mat Mat Hostile Shots Fired 238 | 5 4 . 37 192 Missed 86 | 3 3 . 16 64 Damage Taken 1485 | 14 7 13 194 1257 Core 600 | 7 7 . 34 552 Absorbed by Shields . | . . . . . Ignored by Resistances 888 | 9 5 8 121 745 Regen/Repaired (Parts) 30 | . . . 30 . Core Remaining (%) 94 | 97 . 94 91 . Volleys Fired 53 | 6 1 2 25 19 Largest 3 | 2 2 2 2 3 Hottest 95 | 70 78 62 72 95 Shots Fired 107 | 12 2 4 42 47 Gun 32 | 12 . 2 5 13 Cannon 54 | . 2 2 26 24 Launcher 21 | . . . 11 10 Special . | . . . . . Kinetic 80 | 6 2 4 31 37 Thermal 6 | 6 . . . . Explosive 21 | . . . 11 10 Electromagnetic . | . . . . . Robot Hit Streak 16 | 7 . 2 16 8 Robot Miss Streak 4 | 1 2 . 3 4 Penetration Max . | . . . . . Secondary Targets . | . . . . . Shots Hit Robots 50 | 8 . 2 15 25 Core Hits 36 | 2 . . 13 21 Critical Kills . | . . . . . Critical Parts Destroyed 2 | . . . . 2 Critical Strikes 6 | . . . 2 4 Blast 3 | . . . 2 1 Smash 3 | . . . . 3 Melee Attacks 9 | . . . . 9 Impact 9 | . . . . 9 Slashing . | . . . . . Piercing . | . . . . . Sneak Attacks . | . . . . . Combat Hostiles . | . . . . . Follow-up Attacks . | . . . . . Damage Inflicted 2278 | 84 . 44 901 1249 Guns 229 | 84 . 12 70 63 Cannons 488 | . . 23 209 256 Explosions 1155 | . . . 622 533 Melee 340 | . . . . 340 Ramming 66 | . . 9 . 57 Kinetic 679 | 46 . 35 279 319 Thermal 165 | 38 . . 127 . Explosive 1028 | . . . 495 533 Electromagnetic . | . . . . . Impact 340 | . . . . 340 Slashing . | . . . . . Piercing . | . . . . . Highest Corruption 2 | . . . 1 2 Average Corruption 1 | . . . 1 1 Corruption Purged . | . . . . . Corruption Blocked . | . . . . . Effects 12 | . . . 10 2 Message Errors 2 | . . . 2 . Matter Fused 8 | . . . 7 1 Heat Flow Errors 1 | . . . . 1 Misfires 1 | . . . 1 . Overload Shots . | . . . . . Overflow Damage 95 | . . . 18 77 Projectiles . | . . . . . Explosions 18 | . . . 18 . Melee 77 | . . . . 77 Knockbacks 1 | . . 1 . . Impact . | . . . . . Kinetic 1 | . . 1 . . Secondary . | . . . . . Self-Inflicted Damage 31 | . . . 23 8 Shots 2 | . . . 2 . Rammed 4 | . . . . 4 Targets Rammed 19 | . . 2 . 17 Kicked 15 | . . 2 . 13 Crushed . | . . . . . Highest Temperature 194 | 56 18 . 9 194 Average Temperature 27 | 26 9 . 3 32 Received Heat Transfer 1068 | 12 6 12 93 945 Siege Activations . | . . . . . Robots Corrupted . | . . . . . Combat Hostiles . | . . . . . Parts Fried 1 | . . . . 1 Impact Corruptions 2 | . . . . 2 Robots Melted . | . . . . . Combat Hostiles . | . . . . . Parts Melted . | . . . . . Heat Transferred 211 | 111 . . 100 . Parts Sabotaged . | . . . . . Parts Stolen . | . . . . . Parts Stripped . | . . . . . Power Chain Reactions . | . . . . . Alert | -11 -10 -10 -9 -8 ------- Run | Yrd Mat Min Mat Mat Peak Influence 169 | 20 17 41 150 169 Initial 21 | . 9 4 . 21 Average 29 | 11 10 19 21 60 Maximum Alert Level . | . . . . . Low Security (%) 100 | 100 100 100 100 100 Level 1 . | . . . . . Level 2 . | . . . . . Level 3 . | . . . . . Level 4 . | . . . . . Level 5 . | . . . . . High Security . | . . . . . Max Security . | . . . . . Squads Dispatched 4 | . . 1 1 2 Investigation 2 | . . 1 1 . Extermination . | . . . . . Reinforcement 2 | . . . . 2 Assault . | . . . . . Garrison . | . . . . . Intercept . | . . . . . Searches Triggered . | . . . . . Construction Impeded . | . . . . . Haulers Reinforced . | . . . . . Active Scanning Responses . | . . . . . Cargo Convoy Interrupts . | . . . . . Stealth | -11 -10 -10 -9 -8 --------- Run | Yrd Mat Min Mat Mat Distress Signals 3 | . 1 . . 2 Communications Jammed . | . . . . . Distress Signals . | . . . . . Times Spotted 53 | 1 3 4 21 24 Peak Tracking Total 12 | 1 3 2 3 12 Tactical Retreats 11 | . . . 8 3 Traps | -11 -10 -10 -9 -8 ------- Run | Yrd Mat Min Mat Mat Traps Triggered 4 | . . . 1 3 Indirectly . | . . . . . Trap Hack Attempts . | . . . . . Triggered . | . . . . . Disarmed . | . . . . . Reprogrammed . | . . . . . Reused . | . . . . . Traps Extracted . | . . . . . Installed . | . . . . . Triggered . | . . . . . Machines | -11 -10 -10 -9 -8 ---------- Run | Yrd Mat Min Mat Mat Machines Disabled 8 | . . . 6 2 Max in Single Turn 2 | . . . 2 1 Machines Repaired . | . . . . . Machines Dismantled . | . . . . . Machines Sabotaged . | . . . . . Overloaded Fab Kills . | . . . . . Hacking | -11 -10 -10 -9 -8 --------- Run | Yrd Mat Min Mat Mat Machines Accessed 8 | . 1 1 5 1 Terminals 4 | . 1 . 3 . Fabricators . | . . . . . Repair Stations 1 | . . . 1 . Recycling Units . | . . . . . Scanalyzers 1 | . . . 1 . Garrison Access 1 | . . . . 1 Total Hacks 27 | . 7 1 18 1 Successful 24 | . 7 1 15 1 Failed 3 | . . . 3 . Catastrophic . | . . . . . Database Lockouts . | . . . . . Manual 2 | . . . 2 . Terminals 20 | . 7 . 13 . Fabricators . | . . . . . Repair Stations 3 | . . . 3 . Recycling Units . | . . . . . Scanalyzers 2 | . . . 2 . Garrison Access 1 | . . . . 1 Terminal Hacks 18 | . 7 1 10 . Record 2 | . 2 . . . Robot Analysis 1 | . 1 . . . Open Door 1 | . . 1 . . Branch Access Points 1 | . 1 . . . Alert Level 4 | . . . 4 . Locate Traps 1 | . 1 . . . Dispatch Records 3 | . 1 . 2 . Maintenance Status 1 | . . . 1 . Investigation Status 2 | . 1 . 1 . Hauler Manifests 1 | . . . 1 . Zone Layout 1 | . . . 1 . Fabricator Hacks . | . . . . . Repair Station Hacks 3 | . . . 3 . Scan Component 2 | . . . 2 . Repair 1 | . . . 1 . Recycling Unit Hacks . | . . . . . Scanalyzer 2 | . . . 2 . Insert Component 1 | . . . 1 . Analyze 1 | . . . 1 . Garrison Access Hacks 1 | . . . . 1 Unlock Access 1 | . . . . 1 Unauthorized Hacks . | . . . . . Terminals . | . . . . . Fabricators . | . . . . . Repair Stations . | . . . . . Recycling Units . | . . . . . Scanalyzers . | . . . . . Garrison Access . | . . . . . Data Cores Recovered . | . . . . . Used . | . . . . . Hacking Detections 4 | . . . 4 . Full Trace Events 3 | . . . 3 . Feedback Events 1 | . . . 1 . Corruption 1 | . . . 1 . Feedback Blocked . | . . . . . Robot Schematics Acquired . | . . . . . Robots Built . | . . . . . Authchips . | . . . . . Time . | . . . . . Total Robot Build Rating . | . . . . . Part Schematics Acquired 1 | . . . 1 . Parts Built . | . . . . . Authchips . | . . . . . Time . | . . . . . Total Part Build Rating . | . . . . . Parts Repaired 1 | . . . 1 . Time 38 | . . . 38 . Parts Recycled . | . . . . . Recycled Matter . | . . . . . Retrieved Matter . | . . . . . Retrieved Components . | . . . . . Parts Scanalyzed 1 | . . . 1 . Part Schematics Acquired 1 | . . . 1 . Parts Damaged . | . . . . . Bothacking | -11 -10 -10 -9 -8 ------------ Run | Yrd Mat Min Mat Mat Used RIF Installer . | . . . . . Robots Hacked . | . . . . . Non-combat . | . . . . . Combat . | . . . . . Robot Hacks Applied . | . . . . . Relay Couplers Released . | . . . . . Fabnet Peak Effective % . | . . . . . Robots Rewired . | . . . . . Allies Hacked . | . . . . . Hacks Repelled . | . . . . . Allies | -11 -10 -10 -9 -8 -------- Run | Yrd Mat Min Mat Mat Total Allies 5 | . . 5 . . Largest Group 5 | . . 5 3 . Highest-Rated Group 81 | . . 81 57 . Highest-Rated Ally 31 | . . 31 31 . Total Orders 3 | . . 3 . . GUARD 3 | . . 3 . . Ally Attacks 25 | . . 18 7 . Total Damage 292 | . . 223 69 . Kills 4 | . . 3 1 . Allies Corrupted . | . . . . . Allies Melted . | . . . . . Intel | -11 -10 -10 -9 -8 ------- Run | Yrd Mat Min Mat Mat Robot Analysis Total 1 | . 1 . . . Derelict Logs Recovered . | . . . . . Drone Launches . | . . . . . Drone Recoveries . | . . . . . Exploration | -11 -10 -10 -9 -8 ------------- Run | Yrd Mat Min Mat Mat Turns Passed 6857 | 234 268 839 3980 1536 Spaces Moved 2927 | 170 201 631 1217 708 Core 147 | 21 . . . 126 Treads . | . . . . . Legs 2780 | 149 201 631 1217 582 Wheels . | . . . . . Hover . | . . . . . Flight . | . . . . . Fastest Speed 50 | 50 120 120 120 50 Average Speed 117 | 111 120 120 120 113 Slowest Speed 300 | 120 120 120 120 300 Overloaded Moves . | . . . . . Propulsion Burnouts . | . . . . . Robots Hopped . | . . . . . Cave-ins Triggered . | . . . . . Exploration Rate (%) 38 | 10 22 74 47 41 Regions Visited 4 Branch Regions 1 Pre-discovered Areas . | . . . . . Known Exits Taken 4 | 1 1 1 1 . Unknown Exits Taken . | . . . . . Scrap Searched 1 | . . 1 . . Spaces Dug 9 | . . . 8 1 Terrain Destroyed 205 | . . . 114 91 Melee . | . . . . . Projectile 5 | . . . 1 4 AOE 200 | . . . 113 87 Terrain Rammed . | . . . . . Walls Destroyed . | . . . . . Machines Disabled . | . . . . . Actions | -11 -10 -10 -9 -8 --------- Run | Yrd Mat Min Mat Mat Total 6226 | 207 227 710 3696 1386 Wait 3130 | . 18 63 2440 609 Move 2923 | 169 200 630 1216 708 Hop . | . . . . . Pick Up 38 | 14 3 6 6 9 Fast Attach . | . . . . . Attach 28 | 10 3 3 6 6 Detach 4 | . . 3 1 . Swap 2 | 1 . . 1 . Drop 20 | 7 2 1 1 9 Fire 53 | 6 1 2 25 19 Melee 9 | . . . . 9 Ram 4 | . . . . 4 Kick 15 | . . 2 . 13 Crush . | . . . . . Escape Stasis . | . . . . . Rewire . | . . . . . Trap . | . . . . . Miscellaneous . | . . . . . Route ------- -11/Scrapyard -10/Materials (discovered 2 exits: *Min x2) -10/Mines -9/Materials -8/Materials (discovered 2 exits: *Fac / Gar) History --------- Turn | Location | Event 2 | -11/Scrapyard | Met Revision 17 85 | -11/Scrapyard | Identified exit to Materials 85 | -11/Scrapyard | Discovered exit to Materials (range 8) 235 | -11/Scrapyard | Entered Materials 235 | -10/Materials | Evolved 1 slot: Propulsion x1 285 | -10/Materials | Identified exit to Mines 285 | -10/Materials | Discovered exit to Mines (range 13) 312 | -10/Materials | Build established: Hacker-Mutant 503 | -10/Materials | Entered Mines 510 | -10/Mines | Received a Rocket Launcher from a helpful Derelict 560 | -10/Mines | Assisted by bots powering up and referring to "LRC-V3" 736 | -10/Mines | Identified exit to Materials 736 | -10/Mines | Discovered exit to Materials (range 5) 752 | -10/Mines | Joined a pair of Derelicts in attacking an 0b10 outpost 841 | -10/Mines | Met a Derelict shopkeep closing up shop 1342 | -10/Mines | Entered Materials 1342 | -9/Materials | Accompanied by 3 allies 1342 | -9/Materials | Evolved 2 slots: Utility x2 1347 | -9/Materials | Led the pair of lost Derelicts to an unsafe place 1600 | -9/Materials | Lost 3 allies 2760 | -9/Materials | Repaired Carbon-fiber Leg 5265 | -9/Materials | Identified exit to Materials 5265 | -9/Materials | Discovered exit to Materials (range 16) 5322 | -9/Materials | Entered another Materials area 5322 | -8/Materials | Evolved 2 slots: Power x1, Weapon x1 5608 | -8/Materials | Build established: Hacker-Skirmisher 6483 | -8/Materials | Identified exit to Factory 6483 | -8/Materials | Discovered exit to Factory (range 13) 6589 | -8/Materials | Identified exit to Garrison 6790 | -8/Materials | Core integrity fell below 50% 6814 | -8/Materials | Lost 5 parts (1p1n2u1w) 6826 | -8/Materials | Build established: Hacker-Mutant 6848 | -8/Materials | Core integrity fell below 20% 6858 | -8/Materials | Destroyed by G-47 Trooper with Particle Gun Last Messages --------------- 06820_ Triggered Shock Trap. 06820_ The floor emits a surge of raw power. 06820_ System corrupted (+1). 06829_ System corrupted: Matter fused (-6). 06841_ C-30 ARC bursts open, deploying its payload. 06841_ G-47 Trooper unfolds itself. 06848_ Critical hit (Burn: +37). 06850_ Slammed into G-47 Trooper. 06850_ Penetrated by Slug. 06851_ Slammed into H-55 Commando. 06852_ Slammed into G-47 Trooper. 06853_ System corrupted: Heat flow error (+225). 06855_ Critical hit (Burn: +37). 06856_ Slammed into G-47 Trooper. [Achievement: First Step to Greatness] The achievement interface (ESC then open Records) offers an effective way to explore all of your earned achievements as well as seek out new goals for future runs. Map ----- +----------------------------------------------------+ | #### # """ ????????????????????????????????? | | ######## "T" """ ??#???????? ????????????????????? | | ######## """ ?????????? #???????????????????? | | #######?##########????????? #???????????????????? | | ########?# ""? ??????????" #???????????????????? | | ########## """""""????????" #???????????????????? | | ########?# "???????????" #???????????????????? | | ####?##### ?? ?????????? ????????????????????? | | ###?###### ???????????####"####??????????????????? | | ##################+#### #??????????????????? | | #??????????????????? | | #??????????????????? | | T +??????????????????? | | =%/ #??????????????????? | | ! * #??????????????????? | | #########/#####"T"##### #??????????????????? | | ?#??# * #"""#???### ###??????????????????? | | ?##?# #####?????# #????????????????????? | | ##??# #?????????# #????????????????????? | | ????# #?????????# #????????????????????? | | ##### """ """ #?????????#Y^ #????????????????????? | | ????# """ """ #?????????# #????????????????????? | | ?#??# """ "" #?######### ##???????????????????? | | ?#??# #?# *# #???????????????????? | | ????#/#########?# g g# #### #??????????????? | | ????# #?????????# """ g/%@ #??????????????? | | ????# #?????????# """g # ######??????????????? | | ????# #?????????# """ # #???????????????????? | | ????# #?????????# ### ###???????????????????? | | ????# #?????????########?? #?????????????????????? | | ???? ??????????????????? #?????????????????????? | | ???? ??????????????????? #?????????????????????? | | ???? ??????????????????? #?????????????????????? | | ???? ??????????????????? ?????????????????????? | | ???? ??????????????????? #?????????????????????? | | ????# #??????????????????? #?????????????????????? | | ????? ???????????????????????????????????????????? | | ????? ???????????????????????????????????????????? | | ????? ???????????????????????????????????????????? | | ?????????????????????????????????????????????????? | | ?????????????????????????????????????????????????? | | ?????????????????????????????????????????????????? | | ?????????????????????????????????????????????????? | | ?????????????????????????????????????????????????? | | ?????????????????????????????????????????????????? | | ?????????????????????????????????????????????????? | | ?????????????????????????????????????????????????? | | ?????????????????????????????????????????????????? | | ?????????????????????????????????????????????????? | | ?????????????????????????????????????????????????? | +----------------------------------------------------+ Best States ------------- Heat Dissipation 35 Energy Generation 19 Energy Capacity 265 Matter Stores 300 Matter Capacity 300 Sight Range 16 Terrain Scan Range 14 Terrain Scan Density 210 Resistance: KI 35 Resistance: TH 35 Resistance: EX 35 Resistance: EM 35 Resistance: I 35 Resistance: S 35 Resistance: P 35 Evasion (%) 55 Targeting Accuracy 5 Offensive Hacking 20 Item Schematics ----------------- Hvy. Assault Rifle | -9/Materials | Scanalyzed Robot Schematics ------------------ None Fabricated ------------ Nothing Alien Tech Used ----------------- None Achievements -------------- Crack Shot First Step to Greatness Loot Pinata One Hack Too Far Oops Part-time Mechanic Remodeling Shopping List The More The Merrier Uninvited Guest Challenges ------------ None Game ------ Seed CryofiberHackingSystem Manual? 0 Play Time 00:58:33 Cumulative 0.9 hours Start 2024.04.28 @ 18:37:43 End 2024.04.28 @ 20:28:19 Sessions 1 Manual Loads 0 Difficulty Explorer Special Mode None Game No. 1 Rogue 0 Adventurer 0 Explorer 1 Win Type - Total 0 Types 0/0/0/0/0/0/0/0/0 Lore% 0 Gallery% 2 Achievement% 3 Wizard Run 0 Options --------- Layout 1 ASCII 0 Keyboard 0 Movement Arrows Keybinds 0 Fullscreen 1 Font 24/Smallcaps Map View 50x35 Zoom Use 0% Tactical HUD 1 Map Filters NONE Filters NONE Steam 1 RUN: 65853766-8fa1-4563-9bab-0983ef37269e